fUST/lending_fUST_20250613
["ID","MTS","AMOUNT","RATE_DAILY","PERIOD"]
[365549457,1749778123697,1081.63428029,0.00024927,120]
[365549458,1749778123865,1004.70253241,0.00024927,120]
[365549459,1749778124348,1429.16294498,0.00024927,120]
[365549460,1749778124506,463.07542205,0.00024927,120]
[365549461,1749778124567,674.31811729,0.00024927,120]
[365549462,1749778124652,2824.86707971,0.00024927,120]
[365549463,1749778125073,1558.93650933,0.00024927,120]
[365549464,1749778125301,302.79770673,0.00024927,120]
[365549465,1749778125525,425.37447707,0.00024927,120]
[365549466,1749778125583,1423.55961656,0.00024927,120]
[365549467,1749778125660,569.41076077,0.00024927,120]
[365549468,1749778125767,215.30821136,0.00024927,120]
[365549470,1749778126538,1973.79576441,0.00024927,120]
[365549472,1749778126862,316.09082315,0.00024927,120]
[365549473,1749778127064,203.18929317,0.00024927,120]
[365549474,1749778127161,150.99999946,0.00024927,120]
[365549475,1749778127816,376.46209594,0.00024,120]
[365549476,1749778128507,647.49058508,0.00024927,120]
[365549477,1749778128559,1280.17980509,0.00024927,120]
[365549478,1749778128702,218.05162258,0.0001536,120]
[365549479,1749778129487,192.62432175,0.00024927,120]
[365549480,1749778129566,532.67376221,0.00024927,120]
[365549482,1749778130647,218.77608273,0.00024927,120]
[365549483,1749778131317,206.87129354,0.00024927,120]
[365549484,1749778131822,2973.13034066,0.00024927,120]
[365549485,1749778131900,2550.88044167,0.00024927,120]
[365549486,1749778131965,2533.98816794,0.00024927,120]
[365549488,1749778131999,500.2551584,0.0002465,120]
[365549489,1749778132033,228.50501096,0.00024,120]
[365549555,1749778231884,-209.19843507,0.00020387,2]
[365549557,1749778231895,-500.0,0.00020593,2]
[365549559,1749778231905,-2006.4,0.00021585,2]
[365549562,1749778231917,-500.0,0.00021689,2]
[365549565,1749778231927,-460.0,0.00021959,4]
[365549568,1749778231937,-300.0,0.00021959,2]
[365549569,1749778231947,-243.23225615,0.00021959,4]
[365549571,1749778231957,-460.0,0.0002196,4]
[365549573,1749778231966,-460.0,0.0002196,4]
[365549575,1749778231975,-460.0,0.0002196,4]
[365549577,1749778231985,-460.0,0.0002196,4]
[365549579,1749778231994,-460.0,0.0002196,4]
[365549581,1749778232004,-460.0,0.0002196,4]
[365549583,1749778232014,-500.0,0.00021973,2]
[365549585,1749778232024,-6810.82603573,0.00021995,2]
[365549587,1749778232039,-299720.40520054,0.00021999,2]
[365549591,1749778232083,-1386.08540946,0.00021999,2]
[365549593,1749778232093,-821.20955877,0.00021999,2]
[365549606,1749778232102,-821.20955877,0.00021999,2]
[365549608,1749778232222,-821.20955877,0.00021999,2]
[365549610,1749778232232,-445.73090191,0.00021999,2]
[365549612,1749778232242,-4891.97771398,0.00022,2]
[365549615,1749778232253,-76068.65162318,0.00022,2]
[365549617,1749778232263,-11017.6556592,0.00022178,2]
[365549619,1749778232272,-399.48173548,0.00022186,4]
[365549621,1749778232286,-460.0,0.00022186,4]
[365549623,1749778232296,-460.0,0.00022233,4]
[365549624,1749778232305,-460.0,0.00022234,4]
[365549626,1749778232315,-460.0,0.00022234,4]
[365549628,1749778232324,-492.38,0.00022234,4]
[365549630,1749778232334,-460.0,0.00022234,4]
[365549633,1749778232343,-460.0,0.00022234,4]
[365549635,1749778232353,-460.0,0.00022234,4]
[365549637,1749778232362,-460.0,0.00022234,4]
[365549639,1749778232372,-460.0,0.00022234,4]
[365549641,1749778232381,-460.0,0.00022234,4]
[365549643,1749778232391,-460.0,0.00022234,4]
[365549645,1749778232400,-181.522119,0.00022391,2]
[365549647,1749778232410,-835.15920933,0.000224,2]
[365549649,1749778232422,-424.26423502,0.000224,2]
[365549651,1749778232433,-229.7508257,0.000224,2]
[365549653,1749778232443,-160.0,0.000224,2]
[365549655,1749778232452,-160.0,0.000224,2]
[365549657,1749778232461,-160.0,0.000224,2]
[365549659,1749778232471,-160.0,0.000224,2]
[365549661,1749778232480,-11862.37599647,0.000224,2]
[365549663,1749778232489,-160.0,0.000224,2]
[365549665,1749778232498,-460.0,0.0002246,4]
[365549667,1749778232509,-605.29,0.00022507,4]
[365549669,1749778232518,-215.15,0.00022507,4]
[365549671,1749778232530,-460.0,0.00022507,4]
[365549672,1749778232539,-460.0,0.00022508,4]
[365549673,1749778232549,-460.0,0.00022508,4]
[365549674,1749778232558,-492.38,0.00022508,4]
[365549675,1749778232568,-460.0,0.00022508,4]
[365549676,1749778232578,-460.0,0.00022508,4]
[365549677,1749778232588,-460.0,0.00022508,4]
[365549678,1749778232598,-460.0,0.00022508,4]
[365549679,1749778232607,-243.49360664,0.00022521,2]
[365549680,1749778232616,-500.0,0.00022533,2]
[365549681,1749778232626,-460.0,0.00022734,4]
[365549682,1749778232635,-605.29,0.00022781,4]
[365549683,1749778232645,-460.0,0.00022781,4]
[365549684,1749778232654,-460.0,0.00022782,4]
[365549685,1749778232663,-460.0,0.00022782,4]
[365549686,1749778232672,-492.38,0.00022782,4]
[365549687,1749778232682,-505.02799719,0.00022782,4]
[365549688,1749778232691,-460.0,0.00022782,4]
[365549689,1749778232701,-319.15,0.00022782,4]
[365549690,1749778232710,-460.0,0.00022782,4]
[365549691,1749778232719,-500.0,0.00022785,2]
[365549692,1749778232729,-251.31018914,0.00022827,2]
[365549694,1749778232738,-434.88751651,0.000229,8]
[365549695,1749778232747,-434.88751645,0.00022969,8]
[365549697,1749778232757,-460.0,0.00023008,4]
[365549700,1749778232767,-434.88751645,0.00023038,8]
[365549701,1749778232782,-605.29,0.00023055,4]
[365549704,1749778232792,-460.0,0.00023055,4]
[365549705,1749778232802,-460.0,0.00023056,4]
[365549707,1749778232811,-460.0,0.00023056,4]
[365549710,1749778232821,-492.38,0.00023056,4]
[365549712,1749778232830,-460.0,0.00023056,4]
[365549713,1749778232839,-267.55,0.00023056,4]
[365549715,1749778232849,-503.73758269,0.00023081,2]
[365549717,1749778232859,-434.88751645,0.00023107,8]
[365549720,1749778232869,-434.88751645,0.00023176,8]
[365549722,1749778232879,-825.51539444,0.000232,7]
[365549724,1749778232888,-434.88751645,0.00023245,8]
[365549726,1749778232897,-460.0,0.00023273,4]
[365549728,1749778232907,-460.0,0.00023273,2]
[365549730,1749778232916,-460.0,0.00023282,4]
[365549732,1749778232927,-168.0,0.00023289,2]
[365549734,1749778232937,-1676.11313633,0.000233,15]
[365549735,1749778232946,-460.0,0.00023309,4]
[365549736,1749778232956,-217.87784226,0.00023309,4]
[365549737,1749778232966,-460.0,0.00023309,4]
[365549738,1749778232976,-230.368,0.0002331,3]
[365549739,1749778232985,-11862.37599647,0.0002331,10]
[365549741,1749778232995,-1211.34931548,0.00023313,7]
[365549743,1749778233005,-434.88751645,0.00023314,9]
[365549745,1749778233014,-605.29,0.00023329,4]
[365549747,1749778233025,-460.0,0.0002333,4]
[365549749,1749778233038,-460.0,0.0002333,4]
[365549751,1749778233051,-492.38,0.0002333,4]
[365549753,1749778233062,-460.0,0.0002333,4]
[365549754,1749778233071,-584.87042128,0.00023331,4]
[365549756,1749778233081,-207.4,0.00023367,2]
[365549758,1749778233091,-434.88751645,0.00023383,9]
[365549760,1749778233102,-434.88751645,0.00023452,9]
[365549762,1749778233112,-832.200971,0.0002352,3]
[365549764,1749778233122,-434.88751645,0.00023521,9]
[365549766,1749778233132,-288.6,0.00023547,4]
[365549768,1749778233142,-460.0,0.00023547,2]
[365549770,1749778233152,-4012.81,0.00023547,2]
[365549772,1749778233162,-460.0,0.00023556,4]
[365549774,1749778233171,-460.0,0.00023583,4]
[365549776,1749778233181,-460.0,0.00023583,4]
[365549778,1749778233192,-221.639884,0.00023589,30]
[365549780,1749778233201,-434.88751645,0.0002359,9]
[365549782,1749778233211,-605.29,0.00023603,4]
[365549784,1749778233220,-460.0,0.00023604,4]
[365549786,1749778233231,-460.0,0.00023604,4]
[365549788,1749778233240,-492.38,0.00023604,4]
[365549790,1749778233249,-460.0,0.00023604,4]
[365549792,1749778233259,-2035.67286076,0.00023623,2]
[365549794,1749778233269,-434.88751645,0.00023659,9]
[365549796,1749778233280,-15219.7737477,0.000237,2]
[365549804,1749778233354,-821.20955877,0.00021999,2]
[365549806,1749778233365,-821.20955877,0.00021999,2]
[365549808,1749778233375,-486.28906455,0.00021999,2]
[365549870,1749778237824,-159.5346722,0.000219,2]
[365549873,1749778237835,-334.92049422,0.00021999,2]
[365549875,1749778237847,-821.20955877,0.00021999,2]
[365549877,1749778237858,-44.81486431,0.00021999,2]
[365549879,1749778237870,-668.23088101,0.00021999,2]
[365549968,1749778239718,-108.16381345,0.00021999,2]
[365549970,1749778239728,-821.20955877,0.00021999,2]
[365549972,1749778239738,-821.20955877,0.00021999,2]
[365549974,1749778239748,-821.20955877,0.00021999,2]
[365549975,1749778239757,-821.20955877,0.00021999,2]
[365549978,1749778239767,-821.20955877,0.00021999,2]
[365549980,1749778239776,-821.20955877,0.00021999,2]
[365549982,1749778239790,-821.20955877,0.00021999,2]
[365549984,1749778239799,-821.20955877,0.00021999,2]
[365549986,1749778239809,-821.20955877,0.00021999,2]
[365549987,1749778239818,-821.20955877,0.00021999,2]
[365549990,1749778239840,-821.20955877,0.00021999,2]
[365549992,1749778239850,-821.20955877,0.00021999,2]
[365549993,1749778239859,-821.20955877,0.00021999,2]
[365549996,1749778239869,-821.20955877,0.00021999,2]
[365549998,1749778239879,-36514.36801313,0.000237,2]
[365549999,1749778239888,-194.00156722,0.000237,4]
[365550002,1749778239898,-194.0,0.000237,4]
[365550004,1749778239907,-150.89010783,0.000237,4]
[365550006,1749778239916,-150.89010783,0.000237,4]
[365550008,1749778239925,-150.89010783,0.000237,4]
[365550010,1749778239935,-150.89010783,0.000237,4]
[365550012,1749778239944,-158.6026197,0.000237,4]
[365550014,1749778239953,-158.6026197,0.000237,4]
[365550016,1749778239962,-158.6026197,0.000237,4]
[365550018,1749778239972,-158.6026197,0.000237,4]
[365550020,1749778239981,-158.6026197,0.000237,4]
[365550021,1749778239990,-158.6026197,0.000237,4]
[365550023,1749778240000,-158.6026197,0.000237,4]
[365550025,1749778240009,-158.6026197,0.000237,4]
[365550027,1749778240018,-158.6,0.000237,4]
[365550029,1749778240027,-166.53275068,0.000237,4]
[365550031,1749778240039,-166.53275068,0.000237,4]
[365550033,1749778240048,-166.53275068,0.000237,4]
[365550035,1749778240057,-166.53275068,0.000237,4]
[365550037,1749778240066,-166.53275068,0.000237,4]
[365550039,1749778240076,-166.53275068,0.000237,4]
[365550041,1749778240086,-166.53275068,0.000237,4]
[365550043,1749778240095,-166.53275068,0.000237,4]
[365550045,1749778240104,-166.53275068,0.000237,4]
[365550047,1749778240113,-166.53275068,0.000237,4]
[365550049,1749778240122,-166.53275068,0.000237,4]
[365550051,1749778240132,-166.53275068,0.000237,4]
[365550053,1749778240141,-166.53275068,0.000237,4]
[365550055,1749778240150,-166.53275068,0.000237,4]
[365550057,1749778240159,-166.53275068,0.000237,4]
[365550059,1749778240168,-286.98727819,0.000237,4]
[365550061,1749778240177,-286.98727819,0.000237,4]
[365550062,1749778240186,-286.98727819,0.000237,4]
[365550065,1749778240197,-286.98727819,0.000237,4]
[365550067,1749778240207,-286.98727819,0.000237,4]
[365550069,1749778240216,-286.98727819,0.000237,4]
[365550071,1749778240225,-286.98727819,0.000237,4]
[365550073,1749778240234,-286.98727819,0.000237,4]
[365550075,1749778240243,-286.98727819,0.000237,4]
[365550077,1749778240252,-286.98727819,0.000237,4]
[365550079,1749778240262,-286.98727819,0.000237,4]
[365550081,1749778240271,-286.98727819,0.000237,4]
[365550083,1749778240283,-286.98727819,0.000237,4]
[365550084,1749778240293,-286.98727819,0.000237,4]
[365550086,1749778240303,-286.98727819,0.000237,4]
[365550088,1749778240313,-286.98727819,0.000237,4]
[365550090,1749778240322,-286.98727819,0.000237,4]
[365550092,1749778240333,-286.98727819,0.000237,4]
[365550094,1749778240343,-286.98727819,0.000237,4]
[365550096,1749778240352,-286.98,0.000237,4]
[365550098,1749778240362,-669.63698243,0.000237,4]
[365550100,1749778240371,-669.63698243,0.000237,4]
[365550102,1749778240381,-669.63698243,0.000237,4]
[365550104,1749778240390,-669.63698243,0.000237,4]
[365550106,1749778240400,-669.63698243,0.000237,4]
[365550108,1749778240409,-669.63698243,0.000237,4]
[365550110,1749778240418,-669.63698243,0.000237,4]
[365550112,1749778240431,-669.63698243,0.000237,4]
[365550114,1749778240441,-669.63698243,0.000237,4]
[365550116,1749778240450,-669.63698243,0.000237,4]
[365550118,1749778240460,-562.96272223,0.000237,4]
[365550122,1749778240515,-159.53467219,0.00022319,2]
[365550123,1749778240526,-106.6742602,0.000237,4]
[365550124,1749778240543,-669.63698243,0.000237,4]
[365550126,1749778240553,-669.63698243,0.000237,4]
[365550128,1749778240563,-669.63698243,0.000237,4]
[365550129,1749778240573,-203.58012033,0.000237,4]
[365550396,1749778243261,-500.0,0.00021998,2]
[365550398,1749778243272,-221.72604386,0.00021998,2]
[365550400,1749778243284,-460.0,0.00022234,4]
[365550402,1749778243296,-458.92892114,0.00022466,2]
[365550405,1749778243309,-41.07107886,0.00022466,2]
[365550407,1749778243319,-354.04362895,0.00022466,2]
[365550409,1749778243330,-466.0568621,0.000237,4]
[365550411,1749778243339,-434.88751645,0.00023728,9]
[365550413,1749778243350,-500.0,0.00023773,2]
[365550415,1749778243359,-500.0,0.00023773,2]
[365550417,1749778243370,-500.0,0.00023773,2]
[365550419,1749778243380,-501.86450876,0.00023773,2]
[365550421,1749778243390,-500.0,0.00023773,2]
[365550423,1749778243398,-500.0,0.00023773,2]
[365550425,1749778243408,-500.0,0.00023773,2]
[365550427,1749778243419,-500.0,0.00023773,2]
[365550429,1749778243429,-500.0,0.00023773,2]
[365550431,1749778243440,-500.0,0.00023773,2]
[365550433,1749778243450,-600.0,0.00023773,2]
[365550435,1749778243461,-500.0,0.00023773,2]
[365550436,1749778243471,-500.0,0.00023773,2]
[365550437,1749778243480,-500.0,0.00023773,2]
[365550438,1749778243490,-500.0,0.00023773,2]
[365550439,1749778243500,-500.0,0.00023773,2]
[365550440,1749778243509,-500.0,0.00023773,2]
[365550441,1749778243519,-378.07640489,0.00023773,2]
[365550751,1749778245843,-500.0,0.00021998,2]
[365550753,1749778245853,-251.9365963,0.00021998,2]
[365550887,1749778285220,2707.0,0.00024658,120]
[365550888,1749778293098,269.93,0.00023279,120]
[365550889,1749778293811,265.11,0.00023279,120]
[365550893,1749778357360,203.789286,0.00024657,120]
[365550898,1749778407144,198.74583,0.00024931,120]
[365550908,1749778512358,1923.5374196,0.00021157,120]
[365550910,1749778625274,1606.1502078,0.00024649,120]
[365550919,1749779122383,1.91927077,0.00019497,2]
[365550920,1749779122407,698.08072923,0.00019497,2]
[365550922,1749779132129,-700.0,0.00020593,2]
[365550923,1749779132152,-24900.0,0.00020746,2]
[365550924,1749779132172,-160.0,0.00020912,2]
[365550925,1749779132193,-454.69690413,0.00020921,2]
[365550926,1749779132213,-1003.6124818,0.00021,2]
[365550927,1749779132236,-2131.44,0.00021197,2]
[365550928,1749779132256,-300.0,0.00021233,2]
[365550929,1749779132278,-300.0,0.00021233,2]
[365550930,1749779132300,-1200.0,0.00021233,2]
[365550931,1749779132322,-9466.8194042,0.00021234,2]
[365550932,1749779132343,-666.0,0.00021276,2]
[365550933,1749779132367,-200.7892357,0.00021319,2]
[365550934,1749779132392,-2000.0,0.000215,3]
[365550935,1749779132413,-579.57132426,0.000216,2]
[365550936,1749779132436,-700.0,0.00021689,2]
[365550937,1749779132457,-787.84678438,0.00021689,2]
[365550938,1749779132480,-300.0,0.00021898,2]
[365550939,1749779132511,-323.4087413,0.000219,6]
[365550940,1749779132532,-408.04099129,0.00021997,4]
[365550941,1749779132556,-581.95473351,0.00021997,4]
[365550942,1749779132579,-505.27708744,0.00021998,2]
[365550943,1749779132601,-460.0,0.00021998,4]
[365550944,1749779132627,-497.27658735,0.00021998,4]
[365550945,1749779132648,-160.0,0.00021998,2]
[365550946,1749779132672,-502.6,0.00021998,4]
[365550947,1749779132697,-460.0,0.00021998,4]
[365550948,1749779132722,-460.0,0.00021998,4]
[365550949,1749779132745,-494.97232119,0.00021998,4]
[365550950,1749779132767,-383.3422324,0.00021999,4]
[365550951,1749779132790,-483.6561122,0.00021999,4]
[365550952,1749779132814,-460.0,0.00021999,4]
[365550953,1749779132837,-2000.0,0.00022,2]
[365550954,1749779132860,-460.0,0.00022003,4]
[365550955,1749779132889,-460.0,0.00022003,4]
[365550956,1749779132911,-395.95056222,0.00022003,4]
[365550957,1749779132934,-460.0,0.00022003,4]
[365550958,1749779132967,-323.40874103,0.00022003,6]
[365550959,1749779132997,-323.40874103,0.00022107,6]
[365550960,1749779133019,-252.05455966,0.00022134,2]
[365550961,1749779133041,-507.52494973,0.00022177,2]
[365550962,1749779133065,-460.0,0.00022185,4]
[365550963,1749779133090,-460.0,0.00022185,4]
[365550964,1749779133115,-460.0,0.00022185,4]
[365550965,1749779133142,-460.0,0.00022185,4]
[365550966,1749779133167,-460.0,0.00022185,4]
[365550967,1749779133191,-499.38770431,0.00022185,4]
[365550968,1749779133215,-498.70826101,0.00022185,4]
[365550969,1749779133240,-508.1662772,0.00022185,4]
[365550970,1749779133261,-329.86361584,0.00022185,4]
[365550971,1749779133285,-460.0,0.00022186,2]
[365550972,1749779133307,-497.42120416,0.00022186,4]
[365550973,1749779133330,-208.05629496,0.000222,69]
[365550974,1749779133364,-323.40874103,0.0002221,6]
[365550975,1749779133388,-465.73827742,0.00022234,4]
[365550976,1749779133410,-460.0,0.00022234,2]
[365550977,1749779133440,-179.22613844,0.00022234,2]
[365550978,1749779133466,-501.66020466,0.00022234,4]
[365550979,1749779133488,-501.14400044,0.00022267,2]
[365550980,1749779133511,-460.0,0.00022272,4]
[365550981,1749779133538,-502.6,0.00022272,4]
[365550982,1749779133564,-460.0,0.00022272,4]
[365550983,1749779133589,-460.0,0.00022272,4]
[365550984,1749779133613,-463.5205487,0.00022273,4]
[365550985,1749779133640,-460.0,0.00022277,4]
[365550986,1749779133667,-460.0,0.00022277,4]
[365550987,1749779133692,-460.0,0.00022277,4]
[365550988,1749779133725,-323.40874103,0.00022314,7]
[365550989,1749779133749,-260.994,0.00022314,2]
[365550990,1749779133772,-604.34448452,0.00022366,2]
[365550991,1749779133806,-323.40874103,0.00022417,7]
[365550992,1749779133830,-501.93568831,0.0002242,2]
[365550993,1749779133854,-460.0,0.0002243,4]
[365550994,1749779133882,-460.0,0.0002243,4]
[365550995,1749779133908,-357.80069075,0.0002243,4]
[365550996,1749779133930,-835.15920933,0.00022431,2]
[365550997,1749779133953,-424.26423502,0.00022431,2]
[365550998,1749779133976,-229.7508257,0.00022431,2]
[365550999,1749779133997,-160.0,0.00022431,2]
[365551000,1749779134019,-160.0,0.00022432,2]
[365551001,1749779134041,-264.27088558,0.00022446,2]
[365551002,1749779134066,-460.0,0.00022459,4]
[365551003,1749779134091,-460.0,0.00022459,4]
[365551004,1749779134114,-460.0,0.00022459,4]
[365551005,1749779134140,-460.0,0.00022459,4]
[365551006,1749779134165,-460.0,0.00022459,4]
[365551007,1749779134190,-460.0,0.0002246,2]
[365551008,1749779134213,-500.0,0.00022483,2]
[365551009,1749779134236,-504.03301066,0.00022486,2]
[365551010,1749779134258,-205.29736116,0.00022508,2]
[365551011,1749779134281,-252.05455965,0.00022519,2]
[365551012,1749779134302,-504.93114512,0.0002252,2]
[365551013,1749779134334,-323.40874103,0.00022521,7]
[365551014,1749779134357,-460.0,0.00022546,4]
[365551015,1749779134386,-502.6,0.00022546,4]
[365551016,1749779134411,-367.18130795,0.00022546,4]
[365551017,1749779134435,-460.0,0.00022546,4]
[365551018,1749779134461,-460.0,0.00022551,4]
[365551019,1749779134486,-460.0,0.00022551,4]
[365551020,1749779134512,-517.86544021,0.00022551,4]
[365551021,1749779134545,-323.40874103,0.00022624,7]
[365551022,1749779134567,-500.0,0.00022636,2]
[365551023,1749779134589,-502.75230945,0.00022636,2]
[365551024,1749779134612,-503.78936377,0.00022636,2]
[365551025,1749779134641,-500.0,0.00022636,2]
[365551026,1749779134664,-235.15645086,0.00022636,2]
[365551027,1749779134688,-500.25411069,0.00022636,2]
[365551028,1749779134713,-460.0,0.00022704,4]
[365551029,1749779134739,-460.0,0.00022704,4]
[365551030,1749779134763,-3708.98,0.00022711,10]
[365551031,1749779134793,-160.38421903,0.00022721,2]
[365551032,1749779134817,-207.4,0.00022721,2]
[365551033,1749779134839,-151.0,0.00022721,2]
[365551034,1749779134860,-5000.0,0.00022721,2]
[365551035,1749779135037,-1703.55011971,0.00022721,2]
[365551036,1749779135060,-1379.95989952,0.00022721,2]
[365551037,1749779135084,-500.0,0.00022721,2]
[365551038,1749779135107,-500.0,0.00022721,2]
[365551039,1749779135136,-500.0,0.00022721,2]
[365551040,1749779135160,-500.0,0.00022721,2]
[365551041,1749779135183,-500.0,0.00022721,2]
[365551042,1749779135206,-500.0,0.00022721,2]
[365551043,1749779135229,-500.0,0.00022721,2]
[365551044,1749779135251,-500.0,0.00022721,2]
[365551045,1749779135273,-500.0,0.00022721,2]
[365551046,1749779135296,-500.0,0.00022721,2]
[365551047,1749779135317,-500.0,0.00022721,2]
[365551048,1749779135339,-500.0,0.00022721,2]
[365551049,1749779135362,-500.0,0.00022721,2]
[365551050,1749779135387,-500.0,0.00022721,2]
[365551051,1749779135409,-500.0,0.00022721,2]
[365551052,1749779135432,-500.0,0.00022721,2]
[365551053,1749779135455,-500.0,0.00022721,2]
[365551054,1749779135478,-500.0,0.00022721,2]
[365551055,1749779135501,-500.0,0.00022721,2]
[365551056,1749779135524,-500.0,0.00022721,2]
[365551057,1749779135547,-500.0,0.00022721,2]
[365551058,1749779135572,-500.0,0.00022721,2]
[365551059,1749779135594,-500.0,0.00022721,2]
[365551060,1749779135617,-500.0,0.00022721,2]
[365551061,1749779135644,-500.0,0.00022721,2]
[365551062,1749779135668,-500.0,0.00022721,2]
[365551063,1749779135692,-500.0,0.00022721,2]
[365551064,1749779135716,-500.0,0.00022721,2]
[365551065,1749779135739,-500.0,0.00022721,2]
[365551066,1749779135763,-500.0,0.00022721,2]
[365551067,1749779135799,-323.40874103,0.00022728,7]
[365551068,1749779135823,-460.0,0.00022733,4]
[365551069,1749779135849,-411.5,0.00022733,4]
[365551070,1749779135878,-460.0,0.00022733,4]
[365551071,1749779135904,-460.0,0.00022733,4]
[365551072,1749779135929,-504.0926089,0.00022733,4]
[365551073,1749779135953,-460.0,0.00022734,2]
[365551074,1749779135976,-700.0,0.00022785,2]
[365551075,1749779135999,-460.0,0.0002282,4]
[365551076,1749779136026,-502.6,0.0002282,4]
[365551077,1749779136051,-423.11171669,0.0002282,4]
[365551078,1749779136075,-460.0,0.00022825,4]
[365551079,1749779136100,-460.0,0.00022825,4]
[365551080,1749779136135,-323.40874103,0.00022831,8]
[365551081,1749779136155,-500.0,0.00022847,2]
[365551082,1749779136177,-500.0,0.00022847,2]
[365551083,1749779136199,-501.90921836,0.00022847,2]
[365551084,1749779136221,-500.0,0.00022847,2]
[365551085,1749779136243,-500.0,0.00022847,2]
[365551086,1749779136267,-252.05455965,0.00022904,2]
[365551087,1749779136302,-323.40874103,0.00022934,8]
[365551088,1749779136328,-460.0,0.00022978,4]
[365551089,1749779136357,-486.78785527,0.00022978,4]
[365551090,1749779136381,-460.0,0.00022999,4]
[365551091,1749779136403,-2132.01597648,0.00023,2]
[365551092,1749779136430,-460.0,0.00023007,4]
[365551093,1749779136455,-460.0,0.00023007,4]
[365551094,1749779136481,-460.0,0.00023007,4]
[365551095,1749779136504,-460.0,0.00023008,2]
[365551096,1749779136526,-351.32498769,0.00023031,2]
[365551099,1749779229339,2341.64,0.00024928,60]
[365551100,1749779243096,-2104.31,0.00021229,2]
[365551101,1749779243117,-1139.66069633,0.00021857,2]
[365551102,1749779243141,-460.0,0.00021997,4]
[365551103,1749779243164,-460.0,0.00021997,4]
[365551104,1749779243188,-460.0,0.00021997,4]
[365551105,1749779243215,-460.0,0.00021997,4]
[365551106,1749779243238,-460.0,0.00021997,4]
[365551107,1749779243260,-460.0,0.00021998,4]
[365551108,1749779243284,-491.73,0.00021998,4]
[365551109,1749779243305,-460.0,0.00021999,2]
[365551110,1749779243328,-300.0,0.00022184,2]
[365551111,1749779243350,-401.10301164,0.00022185,4]
[365551112,1749779243374,-460.0,0.00022271,4]
[365551113,1749779243397,-460.0,0.00022271,4]
[365551114,1749779243420,-460.0,0.00022271,4]
[365551115,1749779243442,-460.0,0.00022271,4]
[365551116,1749779243473,-460.0,0.00022271,4]
[365551117,1749779243495,-460.0,0.00022272,4]
[365551118,1749779243519,-491.73,0.00022272,4]
[365551119,1749779243542,-460.0,0.00022273,2]
[365551120,1749779243567,-460.0,0.0002243,4]
[365551121,1749779243587,-229.7508257,0.00022437,2]
[365551122,1749779243611,-460.0,0.00022545,4]
[365551123,1749779243635,-460.0,0.00022545,4]
[365551124,1749779243659,-460.0,0.00022545,4]
[365551125,1749779243682,-460.0,0.00022545,4]
[365551126,1749779243709,-460.0,0.00022545,4]
[365551127,1749779243732,-398.22493095,0.00022546,4]
[365551128,1749779243756,-491.73,0.00022546,4]
[365551129,1749779243778,-460.0,0.00022547,2]
[365551130,1749779243800,-818.21062487,0.00022624,2]
[365551131,1749779243821,-501.77315542,0.00022636,2]
[365551132,1749779243847,-460.0,0.00022704,4]
[365551133,1749779243870,-2085.36257229,0.00022731,2]
[365551134,1749779243891,-160.0,0.00022731,2]
[365551135,1749779243915,-835.15920933,0.00022731,2]
[365551136,1749779243936,-424.26423502,0.00022731,2]
[365551137,1749779243962,-460.0,0.00022819,4]
[365551138,1749779243986,-460.0,0.00022819,4]
[365551139,1749779244009,-460.0,0.00022819,4]